fUSD/lending_fUSD_20240828
["ID","MTS","AMOUNT","RATE_DAILY","PERIOD"]
[336455312,1724838639187,-500.0,0.00010999,2]
[336455313,1724838639196,-500.0,0.00010999,2]
[336455314,1724838639206,-152.00015222,0.00010999,2]
[336455315,1724838639216,-297.51588055,0.00010999,2]
[336455316,1724838639225,-500.0,0.00010999,2]
[336455317,1724838639235,-699.0,0.00011,2]
[336455318,1724838639245,-546836.61103054,0.00011,2]
[336455319,1724838639255,-3727.44,0.00011,2]
[336455320,1724838639264,-504.61,0.00011,2]
[336455321,1724838639273,-500.0,0.00011,2]
[336455322,1724838639283,-547.67,0.00011,2]
[336455323,1724838639293,-1062153.81629105,0.00011,2]
[336455324,1724838639311,-636.74999999,0.00011,2]
[336455325,1724838639322,-445.42957939,0.00011,2]
[336455326,1724838639334,-484.65883929,0.00011,2]
[336455327,1724838639345,-318.90318636,0.00011,2]
[336455328,1724838639356,-375.44551653,0.00011,2]
[336455330,1724838639777,-1352.59422969,0.00011,2]
[336455331,1724838639789,-1916.60939772,0.00011,2]
[336455332,1724838639802,-1529.43690522,0.00011,2]
[336455333,1724838639921,-1100245.89579701,0.00011,2]
[336455334,1724838639931,-250.0,0.00011,2]
[336455335,1724838639941,-500.0,0.00011,2]
[336455336,1724838639951,-6279862.49311996,0.00011,2]
[336455337,1724838639961,-2000.0,0.00011,2]
[336455338,1724838639970,-28570.1809043,0.00011,2]
[336455339,1724838639980,-4411527.19450383,0.00011,2]
[336455340,1724838639991,-1015.75187423,0.00011,2]
[336455341,1724838640003,-645.18180464,0.00011,2]
[336455342,1724838640015,-65076.82359592,0.00011,2]
[336455343,1724838640131,-3804.79807166,0.00011,2]
[336455344,1724838640318,-328.47063625,0.00011,2]
[336455345,1724838640334,-3162.60000008,0.00011,2]
[336455346,1724838640346,-4409.69574016,0.00011,2]
[336455347,1724838640357,-422.78277644,0.00011,2]
[336455348,1724838640371,-23473.51817953,0.00011,2]
[336455363,1724838643180,-10000.0,0.00010563,2]
[336455364,1724838643190,-7501.45188842,0.00011,2]
[336455365,1724838643201,-441.344958,0.00011,2]
[336455366,1724838643219,-7461.6,0.00011,2]
[336455367,1724838643230,-70333.66726575,0.00011,2]
[336455368,1724838643242,-133849.91803497,0.00011,2]
[336455382,1724838645757,-421.7,0.000102,2]
[336455383,1724838645767,-500.0,0.00010973,2]
[336455384,1724838645779,-2078.3,0.00011,2]
[336455385,1724838645790,-2088.7692,0.00011,2]
[336455386,1724838645842,-1397.67761202,0.00011,2]
[336455387,1724838645909,-1463.53091829,0.00011,2]
[336455388,1724838645921,-990.73597859,0.00011,2]
[336455389,1724838645932,-912.85999773,0.00011,2]
[336455390,1724838645943,-256859.7526582,0.00011,2]
[336455391,1724838645954,-754.85459043,0.00011,2]
[336455392,1724838645987,-658.12499852,0.00011,2]
[336455394,1724838693751,500.0,9.846e-05,2]
[336455395,1724839012745,533.05,8.219e-05,2]
[336455396,1724839181313,507.86,9.909e-05,2]
[336455397,1724839266232,500.0,8.972e-05,2]
[336455398,1724839308332,1858.93625332,9.899e-05,2]
[336455399,1724839426565,262.4,9.82e-05,2]
[336455400,1724839427514,219.81,9.82e-05,2]
[336455401,1724839471425,200.0,8.972e-05,2]
[336455402,1724839471761,200.0,8.972e-05,2]
[336455403,1724839472120,200.0,8.972e-05,2]
[336455404,1724839472471,200.0,8.972e-05,2]
[336455405,1724839472790,251.0,8.972e-05,2]
[336455406,1724839480879,507.61773081,9.899e-05,2]
[336455408,1724839619208,233.19,9.764e-05,2]
[336455409,1724839619617,233.19,9.766e-05,2]
[336455410,1724839619825,233.19,9.769e-05,2]
[336455411,1724839620054,233.19,9.772e-05,2]
[336455412,1724839620279,233.19,9.774e-05,2]
[336455413,1724839620692,233.19,9.777e-05,2]
[336455414,1724839620932,233.19,9.779e-05,2]
[336455415,1724839621153,233.19,9.782e-05,2]
[336455416,1724839621390,233.19,9.784e-05,2]
[336455417,1724839621619,233.19,9.787e-05,2]
[336455418,1724839621824,233.19,9.79e-05,2]
[336455419,1724839622040,233.19,9.792e-05,2]
[336455420,1724839622268,233.19,9.795e-05,2]
[336455421,1724839622498,233.19,9.797e-05,2]
[336455422,1724839622765,233.19,9.8e-05,2]
[336455423,1724839622970,233.19,9.802e-05,2]
[336455424,1724839623187,233.19,9.805e-05,2]
[336455425,1724839623411,233.19,9.808e-05,2]
[336455426,1724839623621,233.19,9.81e-05,2]
[336455427,1724839623841,233.19,9.813e-05,2]
[336455428,1724839623880,528.51,8.219e-05,2]
[336455441,1724839742966,155.0,9.899e-05,2]
[336455488,1724839831734,-440.37274966,9.929e-05,2]
[336455491,1724839831744,-277.63574042,9.943e-05,2]
[336455494,1724839831754,-891.63165293,9.943e-05,2]
[336455496,1724839831763,-300.0,9.987e-05,2]
[336455497,1724839831772,-1039.49876321,9.988e-05,2]
[336455498,1724839831784,-5163.58942626,9.988e-05,2]
[336455499,1724839831793,-1024.58861413,9.988e-05,2]
[336455501,1724839831802,-1931.3328586,9.999e-05,2]
[336455502,1724839831811,-155.0,9.999e-05,2]
[336455504,1724839831820,-1050.0,0.0001,2]
[336455506,1724839831830,-633.46248602,0.00010009,2]
[336455508,1724839831839,-1157.61943029,0.00010009,2]
[336455511,1724839831854,-109.34959955,0.00010009,2]
[336455513,1724839831863,-547.39117173,0.00010009,2]
[336455515,1724839831873,-737.6,0.00010019,2]
[336455516,1724839831882,-516.13059219,0.00010026,2]
[336455518,1724839831892,-164.59258678,0.00010026,2]
[336455520,1724839831901,-156.4272345,0.00010026,2]
[336455522,1724839831910,-1997.2,0.00010026,2]
[336455524,1724839831919,-500.0,0.00010068,2]
[336455526,1724839831928,-900.0,0.00010068,2]
[336455528,1724839831937,-500.0,0.00010068,2]
[336455530,1724839831952,-1000.0,0.00010068,2]
[336455532,1724839831961,-177.29,0.00010087,2]
[336455534,1724839831970,-289.41545164,0.00010097,2]
[336455535,1724839831979,-152.78,0.000101,2]
[336455544,1724839831988,-528.51,0.00010463,2]
[336455545,1724839832196,-150.0,0.0001047,2]
[336455546,1724839832208,-529.51623645,0.00010471,2]
[336455547,1724839832218,-421.7,0.000105,2]
[336455548,1724839832227,-150.0,0.000105,2]
[336455549,1724839832237,-150.0,0.000105,2]
[336455550,1724839832246,-150.0,0.000105,2]
[336455551,1724839832255,-3699.35,0.00010568,2]
[336455552,1724839832264,-791.18,0.000106,2]
[336455553,1724839832274,-791.18,0.000106,2]
[336455554,1724839832283,-1123.06,0.000106,2]
[336455555,1724839832292,-421.7,0.000106,2]
[336455556,1724839832301,-421.7,0.000106,2]
[336455558,1724839832310,-1898.0,0.00010601,2]
[336455560,1724839832320,-552.0,0.00010601,2]
[336455562,1724839832328,-804.0,0.00010601,2]
[336455564,1724839832338,-348.173,0.00010601,2]
[336455565,1724839832347,-3321.0,0.00010601,2]
[336455567,1724839832357,-1147.0,0.00010601,2]
[336455569,1724839832366,-10799.65966669,0.00010683,2]
[336455571,1724839832375,-3730.0,0.00010693,2]
[336455572,1724839832385,-320.02,0.00010693,2]
[336455574,1724839832394,-1206.0,0.00010693,2]
[336455576,1724839832403,-5851.0,0.00010693,2]
[336455578,1724839832413,-13456.0,0.00010693,2]
[336455580,1724839832422,-791.18,0.000107,2]
[336455582,1724839832432,-150.0,0.000107,2]
[336455584,1724839832443,-421.7,0.000107,2]
[336455586,1724839832452,-150.0,0.000107,2]
[336455588,1724839832461,-150.0,0.000107,2]
[336455589,1724839832470,-421.7,0.000107,2]
[336455591,1724839832480,-150.0,0.000107,2]
[336455593,1724839832489,-150.0,0.000107,2]
[336455595,1724839832498,-150.0,0.000107,2]
[336455597,1724839832509,-995.48328955,0.00010799,2]
[336455599,1724839832520,-1154.65394648,0.00010799,2]
[336455601,1724839832530,-1844.6994,0.000108,2]
[336455603,1724839832540,-791.18,0.000108,2]
[336455605,1724839832550,-183.54389271,0.000108,2]
[336455607,1724839832562,-1000.0,0.00010859,2]
[336455609,1724839832572,-265.64160913,0.00010861,2]
[336455611,1724839832581,-1053.45544087,0.00010878,2]
[336455613,1724839832591,-155.52427581,0.00010888,2]
[336455615,1724839832602,-385.82986918,0.00010888,2]
[336455617,1724839832612,-153.46214,0.0001089,2]
[336455619,1724839832622,-278.709,0.00010899,2]
[336455621,1724839832631,-3607.5151,0.000109,2]
[336455623,1724839832641,-1390.4031,0.000109,2]
[336455625,1724839832651,-15547.2713,0.000109,2]
[336455627,1724839832661,-71353.38315379,0.000109,2]
[336455629,1724839832674,-33055.82601835,0.000109,2]
[336455631,1724839832686,-1172.94432786,0.000109,2]
[336455633,1724839832696,-7500.0,0.000109,2]
[336455635,1724839832706,-5366.11280819,0.000109,2]
[336455638,1724839832718,-9684.0785141,0.000109,2]
[336456157,1724839838073,-218.99354596,9.999e-05,2]
[336456159,1724839838082,-1162.70652421,0.000109,2]
[336456161,1724839838092,-351.4371666,0.000109,2]
[336456163,1724839838102,-328.30737938,0.000109,2]
[336456165,1724839838111,-500.0,0.00010912,2]
[336456167,1724839838121,-219.01343578,0.00010949,2]
[336456169,1724839838136,-150.044309,0.00010958,2]
[336456171,1724839838146,-164.35,0.00010959,2]
[336456173,1724839838156,-169.64,0.00010959,2]
[336456174,1724839838166,-1500.0,0.00010959,2]
[336456175,1724839838176,-5575.04,0.00010959,2]
[336456176,1724839838185,-369.9,0.00010959,2]
[336456177,1724839838195,-308.25,0.00010959,2]
[336456178,1724839838205,-256.87,0.00010959,2]
[336456179,1724839838217,-214.06,0.00010959,2]
[336456180,1724839838228,-178.39,0.00010959,2]
[336456181,1724839838238,-150.0,0.00010959,2]
[336456182,1724839838248,-891.95,0.00010959,2]
[336456183,1724839838257,-164.452,0.00010966,2]
[336456184,1724839838267,-160.01885692,0.00010973,2]
[336456185,1724839838276,-160.02072221,0.00010973,2]
[336456186,1724839838286,-155.02007465,0.00010973,2]
[336456187,1724839838295,-500.0,0.00010973,2]
[336456188,1724839838305,-199.98844464,0.00010973,2]
[336456189,1724839838315,-179.4032322,0.00010973,2]
[336456190,1724839838325,-152.01968609,0.00010973,2]
[336456191,1724839838334,-500.0,0.00010973,2]
[336456192,1724839838344,-155.0193268,0.00010973,2]
[336456193,1724839838354,-420.0,0.00010985,2]
[336456194,1724839838364,-2948.4103635,0.00010997,2]
[336456195,1724839838374,-1481.9111756,0.00010997,2]
[336456196,1724839838384,-500.0,0.00010998,2]
[336456197,1724839838393,-500.0,0.00010998,2]
[336456198,1724839838403,-500.0,0.00010998,2]
[336456199,1724839838412,-500.0,0.00010999,2]
[336456200,1724839838422,-422.89402082,0.00010999,2]
[336456201,1724839838432,-197.53097559,0.00010999,2]
[336456202,1724839838441,-768.56,0.00010999,2]
[336456203,1724839838453,-768.56,0.00010999,2]
[336456204,1724839838462,-768.56,0.00010999,2]
[336456205,1724839838481,-768.56,0.00010999,2]
[336456206,1724839838492,-768.56,0.00010999,2]
[336456207,1724839838501,-768.56,0.00010999,2]
[336456208,1724839838510,-768.56,0.00010999,2]
[336456209,1724839838520,-768.56,0.00010999,2]
[336456210,1724839838530,-768.56,0.00010999,2]
[336456211,1724839838541,-768.56,0.00010999,2]
[336456212,1724839838552,-768.56,0.00010999,2]
[336456213,1724839838562,-768.56,0.00010999,2]
[336456214,1724839838572,-768.56,0.00010999,2]
[336456215,1724839838582,-768.56,0.00010999,2]
[336456216,1724839838592,-768.56,0.00010999,2]
[336456218,1724839838602,-768.56,0.00010999,2]
[336456220,1724839838613,-768.56,0.00010999,2]
[336456222,1724839838623,-768.56,0.00010999,2]
[336456224,1724839838633,-768.56,0.00010999,2]
[336456226,1724839838643,-768.56,0.00010999,2]
[336456228,1724839838654,-768.56,0.00010999,2]
[336456230,1724839838665,-768.56,0.00010999,2]
[336456231,1724839838674,-768.56,0.00010999,2]
[336456233,1724839838684,-768.6319985,0.00010999,2]
[336456235,1724839838694,-492.63058698,0.00010999,2]
[336456236,1724839838706,-386.7075232,0.00010999,2]
[336456237,1724839838716,-500.0,0.00010999,2]
[336456238,1724839838725,-500.0,0.00010999,2]
[336456239,1724839838735,-475.28805337,0.00010999,2]
[336456240,1724839838745,-500.0,0.00010999,2]
[336456241,1724839838754,-500.0,0.00010999,2]
[336456242,1724839838764,-500.0,0.00010999,2]
[336456243,1724839838773,-500.0,0.00010999,2]
[336456244,1724839838783,-500.0,0.00010999,2]
[336456245,1724839838792,-500.0,0.00010999,2]
[336456246,1724839838801,-500.0,0.00010999,2]
[336456247,1724839838810,-500.0,0.00010999,2]
[336456248,1724839838820,-500.0,0.00010999,2]
[336456249,1724839838829,-500.0,0.00010999,2]
[336456250,1724839838839,-178.53301647,0.00010999,2]
[336456251,1724839838848,-500.0,0.00010999,2]
[336456252,1724839838858,-500.0,0.00010999,2]
[336456253,1724839838868,-500.0,0.00010999,2]
[336456254,1724839838877,-500.0,0.00010999,2]
[336456255,1724839838887,-500.0,0.00010999,2]
[336456256,1724839838897,-418.02999999,0.00010999,2]
[336456257,1724839838906,-4665.9,0.00010999,2]
[336456258,1724839838916,-4665.9,0.00010999,2]
[336456259,1724839838926,-4665.9,0.00010999,2]
[336456260,1724839838937,-4665.9,0.00010999,2]
[336456261,1724839838949,-4665.9,0.00010999,2]
[336456262,1724839838958,-4665.9,0.00010999,2]
[336456263,1724839838968,-4665.9,0.00010999,2]
[336456264,1724839838978,-4665.9,0.00010999,2]
[336456265,1724839838988,-4665.9,0.00010999,2]
[336456266,1724839838997,-4665.9,0.00010999,2]
[336456267,1724839839007,-4665.9,0.00010999,2]
[336456268,1724839839016,-4665.9,0.00010999,2]
[336456269,1724839839026,-4665.9,0.00010999,2]
[336456270,1724839839035,-4665.9,0.00010999,2]
[336456271,1724839839045,-4665.9,0.00010999,2]
[336456272,1724839839055,-4665.9,0.00010999,2]
[336456273,1724839839065,-4665.9,0.00010999,2]
[336456274,1724839839075,-4665.9,0.00010999,2]
[336456275,1724839839085,-4665.9,0.00010999,2]
[336456276,1724839839095,-4665.9,0.00010999,2]
[336456277,1724839839105,-4665.9,0.00010999,2]
[336456278,1724839839115,-4665.9,0.00010999,2]
[336456279,1724839839125,-4665.9,0.00010999,2]
[336456280,1724839839138,-4665.94082528,0.00010999,2]
[336456281,1724839839148,-500.0,0.00010999,2]
[336456282,1724839839157,-500.0,0.00010999,2]
[336456283,1724839839166,-500.0,0.00010999,2]
[336456284,1724839839177,-500.0,0.00010999,2]
[336456285,1724839839186,-500.0,0.00010999,2]
[336456286,1724839839197,-500.0,0.00010999,2]
[336456287,1724839839209,-500.0,0.00010999,2]
[336456288,1724839839219,-500.0,0.00010999,2]
[336456289,1724839839229,-500.0,0.00010999,2]
[336456290,1724839839238,-500.0,0.00010999,2]
[336456291,1724839839247,-526.32925249,0.00010999,2]
[336456292,1724839839257,-500.0,0.00010999,2]
[336456293,1724839839266,-500.0,0.00010999,2]
[336456294,1724839839276,-278800.87179611,0.00011,2]
[336456295,1724839839288,-120032.87588882,0.00011,2]
[336456296,1724839839302,-3009.51094172,0.00011,2]
[336456297,1724839839313,-4057.20342361,0.00011,2]
[336456298,1724839839324,-410.78385034,0.00011,2]
[336456299,1724839839336,-431.26967823,0.00011,2]
[336456300,1724839839351,-547.68915512,0.00011,2]
[336456301,1724839839362,-8951.14770361,0.00011,2]
[336456302,1724839839374,-5342.18168736,0.00011,2]
[336456303,1724839839383,-3766.86,0.00011,2]
[336456304,1724839839393,-525.65213034,0.00011,2]
[336456305,1724839839404,-3666.65251114,0.00011,2]
[336456306,1724839839415,-16792.55808578,0.00011,2]
[336456307,1724839839427,-467.14661128,0.00011,2]
[336456308,1724839839439,-15073.07401685,0.00011,2]
[336456316,1724839839953,-1078.0,0.00010693,2]
[336456317,1724839839963,-2543.02882917,0.00011,2]
[336456318,1724839839974,-137899.76943831,0.00011,2]
[336456319,1724839839987,-131083.42968422,0.00011,2]
[336456320,1724839840052,-1796033.02925199,0.00011,2]
[336456321,1724839840062,-120811.63434428,0.00011,2]
[336456322,1724839840071,-2528311.4850529,0.00011,2]
[336456323,1724839840080,-162.95327982,0.00011,2]
[336456324,1724839840090,-170.73845005,0.00011,2]
[336456325,1724839840099,-500.0,0.00011,2]
[336456326,1724839840108,-500.0,0.00011,2]
[336456327,1724839840118,-500.0,0.00011,2]
[336456328,1724839840128,-500.0,0.00011,2]
[336456329,1724839840142,-500.0,0.00011,2]
[336456330,1724839840151,-500.0,0.00011,2]
[336456331,1724839840160,-212.21,0.00011,2]
[336456332,1724839840171,-588.67,0.00011,2]
[336456333,1724839840180,-1519022.54727666,0.00011,2]
[336456334,1724839840450,-4202.82565966,0.00011,2]
[336456335,1724839840462,-375.75630883,0.00011,2]
[336456336,1724839840473,-22512.11144,0.00011,2]
[336456337,1724839840485,-477.97858448,0.00011,2]
[336456338,1724839840501,-30229.10978456,0.00011,2]
[336456339,1724839840563,-20022.01739984,0.00011,2]
[336456340,1724839840575,-6367.9,0.00011,2]
[336456341,1724839840658,-7104.61058235,0.00011,2]
[336456342,1724839840677,-771.144,0.00011,2]
[336456446,1724839845915,-8814.12,0.00010553,2]
[336456447,1724839845942,-680.25,0.00010553,2]
[336456448,1724839845955,-505.63,0.00010553,2]
[336456449,1724839845964,-24694.36999962,0.00011,2]
[336456450,1724839846125,-3906.99102266,0.00011,2]
[336456452,1724839846142,-2247.58852895,0.00011,2]
[336456454,1724839846153,-43752.76288865,0.00011,2]
[336456456,1724839846162,-182.09092873,0.00011,2]
[336456457,1724839846172,-416.97368704,0.00011,2]
[336456459,1724839846183,-341.16250447,0.00011,4]
[336456461,1724839846192,-151.0,0.00011,2]
[336456463,1724839846202,-151.0,0.00011,2]
[336456465,1724839846211,-500.0,0.00011,2]
[336456467,1724839846222,-151.0,0.00011,2]
[336456469,1724839846231,-151.0,0.00011,2]
[336456470,1724839846241,-152.972984,0.00011,2]
[336456472,1724839846250,-151.0,0.00011,2]
[336456494,1724839846420,-151.0,0.00011,2]
[336456497,1724839846478,-151.0,0.00011,2]
[336456499,1724839846488,-2000.0,0.00011,2]
[336456501,1724839846497,-250.0,0.00011,2]
[336456503,1724839846507,-791.18,0.00011,2]
[336456505,1724839846517,-1052.56443526,0.00011,2]
[336456507,1724839846526,-496.44489221,0.00011,2]
[336456509,1724839846536,-500.0,0.00011,2]
[336456511,1724839846545,-722.3833,0.00011,2]
[336456513,1724839846555,-3404.66,0.00011,2]
[336456515,1724839846565,-500.0,0.00011,2]
[336456517,1724839846574,-24088.6244292,0.00011005,2]
[336456519,1724839846584,-312.08,0.00011041,2]
[336456521,1724839846593,-262.4,0.00011047,2]
[336456523,1724839846604,-1000.0,0.000111,2]
[336456525,1724839846613,-150.0,0.00011204,2]
[336456526,1724839846622,-150.318,0.00011204,2]
[336456528,1724839846632,-151.0,0.00011204,2]
[336456530,1724839846641,-209.076,0.00011204,2]
[336456532,1724839846651,-163.0,0.00011204,2]
[336456534,1724839846660,-164.23,0.00011204,2]
[336456536,1724839846669,-200.0,0.00011204,2]
[336456538,1724839846678,-155.692,0.00011204,2]
[336456540,1724839846688,-252.866,0.00011204,2]
[336456542,1724839846698,-250.0,0.00011204,2]
[336456544,1724839846708,-261.663,0.00011204,2]
[336456545,1724839846718,-187.529,0.00011204,2]
[336456547,1724839846727,-262.839,0.00011204,2]
[336456549,1724839846736,-250.0,0.00011204,2]
[336456551,1724839846745,-170.171,0.00011204,2]
[336456553,1724839846754,-201.091,0.00011204,2]
[336456555,1724839846764,-150.0,0.00011204,2]
[336456557,1724839846773,-623.0,0.00011204,2]
[336456559,1724839846782,-1922.0,0.00011204,2]
[336456560,1724839846791,-1545.0,0.00011204,2]
[336456562,1724839846800,-1259.0,0.00011204,2]
[336456564,1724839846809,-586.611,0.00011204,2]
[336456566,1724839846819,-168.712,0.00011204,2]
[336456568,1724839846829,-597.971,0.00011204,2]
[336456570,1724839846838,-447.0,0.00011204,2]
[336456572,1724839846848,-810.0,0.00011204,2]
[336456573,1724839846857,-325.94,0.00011221,2]
[336456575,1724839846866,-150.0,0.0001125,2]
[336456577,1724839846875,-150.0,0.0001125,2]
[336456578,1724839846885,-944.89,0.0001125,2]
[336456580,1724839846894,-421.7,0.00011257,2]
[336456582,1724839846903,-421.7,0.00011257,2]
[336456584,1724839846913,-421.7,0.00011257,2]
[336456586,1724839846923,-421.7,0.00011257,2]
[336456587,1724839846932,-421.7,0.00011257,2]
[336456589,1724839846941,-421.7,0.00011257,2]
[336456591,1724839846951,-421.7,0.00011257,2]
[336456593,1724839846960,-421.7,0.00011257,2]
[336456595,1724839846969,-421.7,0.00011257,2]
[336456596,1724839846978,-421.7,0.00011257,2]
[336456598,1724839846987,-737.6,0.00011271,2]
[336456600,1724839846996,-631.96917197,0.000114,2]
[336456602,1724839847005,-900.0,0.00011438,2]
[336456604,1724839847014,-1000.0,0.00011438,2]
[336456606,1724839847023,-420.80890126,0.00011483,2]
[336456608,1724839847033,-150.0,0.00011496,2]
[336456609,1724839847042,-1000.0,0.00011521,2]
[336456611,1724839847051,-164.452,0.00011542,2]
[336456613,1724839847060,-500.0,0.00011712,2]
[336456615,1724839847069,-1370.53194426,0.00011893,2]
[336456617,1724839847078,-1370.53194426,0.00011893,2]
[336456619,1724839847088,-5000.0,0.00011943,2]
[336456621,1724839847097,-5000.0,0.00011943,2]
[336456623,1724839847106,-5000.0,0.00011943,2]
[336456625,1724839847116,-155.0,0.00011999,2]
[336456627,1724839847125,-1286.06670081,0.00011999,2]
[336456628,1724839847138,-155.5628945,0.00011999,2]
[336456630,1724839847148,-401.85092769,0.00011999,2]
[336456632,1724839847157,-155.0,0.00012,2]
[336456634,1724839847165,-2000.0,0.00012,2]
[336456636,1724839847174,-5000.0,0.00012,2]
[336456638,1724839847185,-27185.83005679,0.00012,12]
[336456640,1724839847198,-288.81640394,0.00012,12]
[336456643,1724839847213,-2406.3416853,0.00012,12]
[336456983,1724840053845,4360.64,9.9e-05,2]
[336456984,1724840157493,517.68,8.608e-05,2]
[336457029,1724840539526,2388.81570417,9.899e-05,2]
[336457031,1724840658333,510.71,8.219e-05,2]
[336457034,1724840779917,504.24717637,9.899e-05,2]
[336457053,1724840826569,500.0,8.972e-05,2]
[336457068,1724840858448,203.13728804,9.899e-05,2]
[336457069,1724840881780,500.0,8.972e-05,2]
[336457072,1724840926527,500.0,8.972e-05,2]
[336457094,1724840946769,332.79,9.742e-05,2]
[336457118,1724841004271,192.3708335,9.899e-05,2]
[336457126,1724841032096,-266.72277394,9.91e-05,2]
[336457127,1724841032108,-652.16222606,9.929e-05,2]
[336457128,1724841032183,-525.64990943,9.929e-05,2]
[336457129,1724841032192,-3618.23,9.936e-05,2]
[336457130,1724841032202,-157.44,9.938e-05,2]
[336457131,1724841032211,-265.64160913,9.943e-05,2]
[336457132,1724841032220,-153.62,9.949e-05,2]
[336457133,1724841032230,-1739.7277323,9.988e-05,2]
[336457134,1724841032239,-633.46248602,9.988e-05,2]
[336457136,1724841032249,-300.0,9.998e-05,2]
[336457138,1724841032258,-1050.0,0.0001,2]
[336457140,1724841032267,-2112.26107616,0.0001,2]
[336457142,1724841032277,-298.82691546,0.00010009,2]
[336457144,1724841032286,-456.35499354,0.00010009,2]
[336457146,1724841032295,-155.0,0.00010009,2]
[336457148,1724841032304,-268.54743942,0.00010009,2]
[336457150,1724841032314,-150.0,0.00010025,2]
[336457152,1724841032324,-6437.03,0.00010026,2]
[336457154,1724841032334,-499.99,0.00010026,2]
[336457156,1724841032350,-420.6670051,0.00010026,2]
[336457158,1724841032359,-800.0,0.00010068,2]
[336457159,1724841032368,-900.0,0.00010068,2]
[336457161,1724841032377,-500.0,0.00010068,2]
[336457163,1724841032387,-8490.22,0.00010068,2]
[336457165,1724841032396,-177.3,0.00010073,2]
[336457167,1724841032406,-164.47323518,0.00010097,2]
[336457169,1724841032415,-529.31576591,0.00010097,2]
[336457172,1724841032424,-150.0,0.00010402,2]
[336457173,1724841032435,-150.0,0.00010402,2]
[336457174,1724841032445,-510.71,0.0001047,2]
[336457175,1724841032454,-885.9,0.0001047,2]
[336457176,1724841032463,-300.25,0.000105,2]
[336457177,1724841032473,-151.98,0.000105,2]
[336457178,1724841032482,-713.58,0.000105,2]
[336457179,1724841032491,-4615.655,0.000107,2]
[336457180,1724841032500,-3817.68,0.0001071,2]
[336457181,1724841032510,-1259.0,0.00010793,2]
[336457182,1724841032519,-289.0,0.00010793,2]
[336457183,1724841032532,-3540.2028,0.000108,2]
[336457184,1724841032542,-1000.0,0.000108,2]
[336457185,1724841032551,-606.4471,0.000108,2]
[336457186,1724841032560,-84850.3646,0.000108,2]
[336457187,1724841032571,-778.593,0.000108,2]
[336457188,1724841032580,-500.0,0.000108,2]
[336457189,1724841032590,-1850.1656,0.000108,2]
[336457190,1724841032601,-9664.7802,0.00010804,2]
[336457191,1724841032611,-464.6308,0.00010877,2]
[336457192,1724841032620,-236.7166,0.00010899,2]
[336457193,1724841032630,-724.12641804,0.00010899,2]
[336457194,1724841032639,-724.12641795,0.00010899,2]
[336457195,1724841032649,-724.12641795,0.00010899,2]
[336457196,1724841032658,-724.12641795,0.00010899,2]
[336457197,1724841032667,-724.12641795,0.00010899,2]
[336457198,1724841032677,-724.12641795,0.00010899,2]
[336457199,1724841032687,-328.2488375,0.00010899,2]
[336457200,1724841032696,-934.4656,0.000109,2]
[336457201,1724841032705,-351.43716658,0.000109,2]
[336457202,1724841032714,-171.05952411,0.000109,2]
[336457204,1724841032723,-656.61475872,0.000109,2]
[336457205,1724841032733,-724.12641795,0.00010903,2]
[336457207,1724841032742,-930.0,0.00010904,2]
[336457209,1724841032751,-557.0,0.00010904,2]